[Event "Reykjavik Open 2022"]
[Site "Reykjavik"]
[Date "2022.04.06"]
[Round "1.48"]
[White "Dietzsch, Herbert"]
[Black "Kolbus, Dietmar"]
[Result "0-1"]
[ECO "B13"]
[WhiteElo "2027"]
[BlackElo "2305"]
[Annotator "TA"]
[PlyCount "242"]
[EventDate "2022.04.06"]
[EventCountry "ISL"]
[SourceTitle "playchess.com"]
[Source "ChessBase"]
[SourceQuality "1"]
[TimeControl "40/5400+30:1800+30"]

{[%evp 41,242,-487,-508,-499,-491,-479,-98,-90,-106,-91,0,0,0,0,0,0,0,0,0,0,0,-60,-41,-45,-18,-20,0,-17,-20,-19,-12,-32,0,0,0,0,0,0,0,0,0,0,0,0,0,0,0,0,0,0,0,0,0,0,0,0,0,0,-28000,-28000,-28000,-28000,-28000,-28000,-28000,-28000,-28000,-28000,-28000,-28000,-28000,-28000,-28000,-28000,-28000,-28000,-28000,-28000,-28000,-28000,-28000,-28000,-28000,-28000,-28000,-28000,-28000,-28000,-28000,-28000,-28000,-28000,-28000,-28000,-28000,-28000,-28000,-28000,-28000,-28000,-28000,-28000,-28000,-28000,-28000,-28000,-28000,-28000,-28000,-28000,-28000,-28000,-28000,-28000,-28000,-28000,-28000,-28000,-28000,-28000,-28000,-28000,-28000,-28000,-28000,-28000,-28000,-28000,-28000,-28000,-28000,-28000,-28000,-28000,-28000,-28000,-28000,-28000,-28000,-28000,-28000,-28000,-28000,-28000,-28000,-28000,-28000,-28000,-28000,-28000,-28000,-28000,-28000,-28000,-28000,-28000,-28000,-28000,-28000,-28000,-28000,-28000,-28000,-28000,-28000,-28000,-28000,-28000,-28000,-28000,-28000,-28000,-28000,-28000,-28000,-28000,-28000,-28000,-28000,-28000,-28000,-28000,-28000,-28000,-28000,-28000,-28000,-27988,-27988,-27989,-27989,-27990,-27990,-27997,-27997,-27998,-27998,-27994,-27994,-27996,-27996,-27999,-27999]} 1. e4 {[%emt 0:00:04]} c6 {[%emt 0:00:08]} 2. d4 {[%emt 0:00:09]} d5 {[%emt 0:00:09]} 3. exd5 {[%emt 0:00:09]} cxd5 {[%emt 0:00:07]} 4. Bd3 {[%emt 0:00:09]} Nf6 {[%emt 0:00:52]} 5. h3 {[%emt 0:00:06]} Nc6 {[%emt 0:03:01]} 6. c3 {[%emt 0:00:07]} g6 {[%emt 0:01:02]} 7. Nf3 {[%emt 0:00:18]} Qc7 {[%emt 0:04:17]} 8. O-O {[%emt 0:00:18]} Bf5 {[%emt 0:00:46]} 9. Bxf5 {[%emt 0:03:09]} gxf5 {[%emt 0:00:03]} 10. Re1 {[%emt 0:00:52]} e6 {[%emt 0:02:41]} 11. Nbd2 {[%emt 0:09:53]} O-O-O {[%emt 0:01:44]} 12. Nb3 {[%emt 0:08:10]} Ne4 {[%emt 0:00:38]} 13. Ng5 {[%emt 0:09:21]} Bd6 {[%emt 0:00:30]} 14. Qh5 {[%emt 0:00:30]} Rdf8 {[%emt 0:00:30]} 15. Nxe4 {[%emt 0:00:30]} fxe4 {[%emt 0:00:30]} 16. f3 {[%emt 0:26:16]} f5 {[%emt 0:15:54]} 17. Bh6 {[%emt 0:06:13]} Rf6 {[%emt 0:03:40]} 18. fxe4 {[%emt 0:01:36]} dxe4 {[%emt 0:00:33]} 19. Rad1 {[%emt 0:01:37]} Rg8 {[%emt 0:07:16]} 20. d5 {[%emt 0:02:03]} Ne5 {[%emt 0:00:14]} 21. Kh1 {[%emt 0:01:38]} Nd3 22. Rxd3 {[%emt 0:14:54]} exd3 {[%emt 0:23:11]} 23. Rxe6 {[%emt 0:00:47]} Rfg6 $2 {[%emt 0:02:17]} (23... Rxe6 $19 {[%cal Re6e1]} 24. Qxf5 {[#]} Qf7 $3 {[%mdl 512]} 25. Qxe6+ Qxe6 26. dxe6 Rg6) 24. Qxf5 $17 {[%emt 0:00:41]} Qd7 {[%emt 0:00:45]} 25. g4 {[%emt 0:06:32]} Rxh6 {[%emt 0:02:19]} (25... a6 $17) 26. Rxh6 $11 {[%emt 0:00:19]} Qxf5 {[%emt 0:00:15]} 27. gxf5 {[%emt 0:01:45]} d2 {[%emt 0:00:23]} 28. Nxd2 {[%emt 0:00:12]} Bf4 {[%emt 0:00:04]} 29. Rxh7 {[%emt 0:00:23]} Bxd2 {[%emt 0:00:04]} 30. f6 {[%emt 0:01:15]} Rf8 {[%emt 0:00:30]} 31. Kg2 {[%emt 0:00:30]} (31. f7 $11) 31... Rxf6 $15 {[%emt 0:00:30]} 32. c4 {[%emt 0:00:30]} Be3 {[%emt 0:00:30]} 33. b4 {[%emt 0:01:17]} a5 {[%emt 0:07:03]} 34. a3 {[%emt 0:01:23]} b6 {[%emt 0:00:27]} 35. Re7 {[%emt 0:01:41]} Bd4 {[%emt 0:02:00]} 36. Kg3 {[%emt 0:01:25]} Kd8 {[%emt 0:02:50]} 37. Ra7 {[%emt 0:00:34]} Bc3 {[%emt 0:14:39]} 38. c5 {[%emt 0:01:01]} axb4 {[%emt 0:00:55]} 39. axb4 {[%emt 0:00:24]} Bxb4 {[%emt 0:00:14]} 40. cxb6 {[%emt 0:00:00]} Rxb6 {[%emt 0:00:00]} 41. Kg4 {[%emt 0:02:29]} Be7 {[%emt 0:02:58]} 42. Kf5 {[%emt 0:04:43]} Rb3 {[%emt 0:01:37]} 43. Ke6 {[%emt 0:01:34]} Re3+ {[%emt 0:00:07]} 44. Kf7 {[%emt 0:00:34]} Bh4 {[%emt 0:01:31]} 45. d6 {[%emt 0:02:45]} Bg3 {[%emt 0:00:46]} 46. d7 {[%emt 0:01:27]} Re4 {[%emt 0:00:28]} 47. Kf6 {[%emt 0:00:38]} Bc7 {[%emt 0:01:26]} 48. Kf5 {[%emt 0:01:22]} Rh4 {[%emt 0:00:49]} 49. Ra3 {[%emt 0:00:53]} Kxd7 $2 {[%emt 0:00:17][%mdl 8192]} (49... Rb4 $11) 50. Rb3 {[%emt 0:00:24]} Ke8 {[%emt 0:00:50]} 51. Kg5 {[%emt 0:00:19]} Bd8+ {[%emt 0:00:07]} 52. Kg6 {[%emt 0:00:15]} Rf4 {[%emt 0:01:22]} 53. Rd3 {[%emt 0:00:34]} Be7 {[%emt 0:01:00]} 54. Rb3 {[%emt 0:00:13]} Rf6+ {[%emt 0:00:55]} 55. Kg7 {[%emt 0:00:34]} Rc6 {[%emt 0:00:45]} 56. Rf3 {[%emt 0:02:06]} Rc1 {[%emt 0:00:17]} 57. Kg6 {[%emt 0:00:33]} Rg1+ {[%emt 0:00:11]} 58. Kf5 {[%emt 0:00:37]} Kf7 {[%emt 0:00:26]} 59. Ke5+ {[%emt 0:00:09]} Kg6 {[%emt 0:00:21]} 60. Kf4 {[%emt 0:00:36]} Bd6+ {[%emt 0:00:13]} 61. Ke4 {[%emt 0:00:10]} Kg5 {[%emt 0:01:13]} 62. Kd5 {[%emt 0:00:23]} Rd1+ {[%emt 0:00:31]} 63. Ke4 {[%emt 0:00:11]} Rh1 {[%emt 0:02:44]} 64. Rd3 {[%emt 0:00:34]} Be7 {[%emt 0:03:49]} 65. Rb3 {[%emt 0:00:29]} Kh4 {[%emt 0:00:37]} 66. Kf4 {[%emt 0:00:16]} Rf1+ {[%emt 0:00:35]} 67. Ke4 {[%emt 0:00:11]} Bd6 {[%emt 0:00:59]} 68. Rd3 {[%emt 0:00:15]} Bg3 {[%emt 0:00:16]} 69. Rd7 {[%emt 0:00:27]} Kxh3 {[%emt 0:00:26]} 70. Rh7+ {[%emt 0:00:17]} Kg2 {[%emt 0:00:04]} 71. Kd5 {[%emt 0:00:00]} Rf8 {[%emt 0:00:00]} 72. Ke4 {[%emt 0:00:20]} Re8+ 73. Kd5 {[%emt 0:00:12]} Kf3 {[%emt 0:00:55]} 74. Rf7+ {[%emt 0:00:34]} Bf4 {[%emt 0:00:07]} 75. Rb7 {[%emt 0:00:16]} Rd8+ {[%emt 0:00:20]} 76. Ke6 {[%emt 0:00:27]} Rd6+ {[%emt 0:01:10]} 77. Ke7 {[%emt 0:00:10]} Ra6 {[%emt 0:00:24]} 78. Kf7 {[%emt 0:00:11]} Kg4 {[%emt 0:00:29]} 79. Ke7 {[%emt 0:00:19]} Kf5 {[%emt 0:00:14]} 80. Kd7 {[%emt 0:00:25]} Be5 {[%emt 0:00:17]} 81. Ke7 {[%emt 0:00:45]} Bd6+ {[%emt 0:03:01]} 82. Kd7 {[%emt 0:03:55]} Kf6 {[%emt 0:00:00]} 83. Rb1 {[%emt 0:00:31]} Bf4 {[%emt 0:00:00]} 84. Rd1 {[%emt 0:00:38]} Ra7+ {[%emt 0:00:00]} 85. Kc6 {[%emt 0:00:14]} Ke6 {[%emt 0:00:10]} 86. Rd3 {[%emt 0:00:43]} Rc7+ {[%emt 0:00:48]} 87. Kb5 {[%emt 0:00:34]} Bd6 {[%emt 0:00:15]} 88. Rd1 {[%emt 0:00:44]} Rc5+ {[%emt 0:00:28]} 89. Kb6 {[%emt 0:00:12]} Rc4 {[%emt 0:02:01]} 90. Kb5 {[%emt 0:02:14]} Rc5+ {[%emt 0:01:02]} 91. Kb6 {[%emt 0:00:16]} Kd7 {[%emt 0:00:11]} 92. Rh1 {[%emt 0:00:28]} Rd5 {[%emt 0:01:20]} 93. Rh7+ {[%emt 0:00:44]} Be7 {[%emt 0:00:09]} 94. Rf7 {[%emt 0:00:37]} Kd6 {[%emt 0:00:18]} 95. Rh7 {[%emt 0:00:28]} Bd8+ {[%emt 0:00:23]} 96. Kb7 {[%emt 0:00:37]} Rb5+ {[%emt 0:01:28]} 97. Kc8 {[%emt 0:00:22]} Bg5 {[%emt 0:01:54]} 98. Rd7+ {[%emt 0:00:36]} Ke6 {[%emt 0:00:17]} 99. Rd6+ {[%emt 0:03:24]} Ke7 {[%emt 0:00:25]} 100. Rd7+ {[%emt 0:00:24]} Kf8 {[%emt 0:00:28]} 101. Rd1 {[%emt 0:00:19]} Kf7 {[%emt 0:00:53]} 102. Rd3 {[%emt 0:00:26]} Bf4 {[%emt 0:00:40]} 103. Kd7 {[%emt 0:00:43]} Rc5 {[%emt 0:00:12]} 104. Rf3 {[%emt 0:00:42]} Rc7+ {[%emt 0:00:11]} 105. Kd8 {[%emt 0:00:10]} Rc4 {[%emt 0:00:05]} 106. Kd7 {[%emt 0:00:11]} Kf6 {[%emt 0:00:11]} 107. Rf1 {[%emt 0:00:21]} Kf5 {[%emt 0:00:18]} 108. Re1 {[%emt 0:00:59]} Rc7+ {[%emt 0:00:16]} 109. Kd8 {[%emt 0:00:08]} Rh7 {[%emt 0:01:16]} 110. Kc8 {[%emt 0:02:16]} Be5 {[%emt 0:00:05]} 111. Rc1 {[%emt 0:10:09]} Ke6 {[%emt 0:00:16]} 112. Rc2 {[%emt 0:00:20]} Bd6 {[%emt 0:01:10]} 113. Rc1 {[%emt 0:00:23]} Kd5 {[%emt 0:00:19]} 114. Rd1+ {[%emt 0:00:10]} Kc6 {[%emt 0:00:17]} 115. Rc1+ {[%emt 0:00:10]} Bc5 {[%emt 0:00:10]} 116. Rd1 {[%emt 0:00:41]} Ra7 {[%emt 0:10:55]} 117. Kb8 {[%emt 0:01:41]} Ra2 {[%emt 0:00:13]} 118. Rc1 {[%emt 0:01:43]} Rh2 {[%emt 0:00:16]} 119. Rxc5+ {[%emt 0:01:04]} Kxc5 {[%emt 0:00:06]} 120. Kb7 {[%emt 0:00:09]} Rh7+ {[%emt 0:00:05]} 121. Ka6 {[%emt 0:01:13]} Rg7 {[%emt 0:00:35]} 0-1

[Event "Reykjavik Open 2022"]
[Site "Reykjavik"]
[Date "2022.04.06"]
[Round "1.49"]
[White "Bjornsson, Sigurbjorn"]
[Black "Moerman, Thomas"]
[Result "1-0"]
[ECO "C19"]
[WhiteElo "2315"]
[BlackElo "2010"]
[Annotator "NA RC"]
[PlyCount "59"]
[EventDate "2022.04.06"]
[EventCountry "ISL"]
[SourceTitle "playchess.com"]
[Source "ChessBase"]
[SourceQuality "1"]
[TimeControl "40/5400+30:1800+30"]

1. e4 {[%emt 0:00:04]} e6 {[%emt 0:00:06]} 2. d4 {[%emt 0:00:17]} d5 {[%emt 0:00:05]} 3. Nc3 {[%emt 0:00:50]} Bb4 {[%emt 0:00:12]} 4. e5 {[%emt 0:00:14]} c5 {[%emt 0:00:06]} 5. a3 {[%emt 0:00:13]} Bxc3+ {[%emt 0:00:07]} 6. bxc3 {[%emt 0:00:05]} Ne7 {[%emt 0:00:07]} 7. Nf3 {[%emt 0:00:33]} b6 {[%emt 0:00:13]} 8. Bb5+ {[%emt 0:04:38]} Bd7 {[%emt 0:00:15]} 9. Bd3 {[%emt 0:00:06]} Nbc6 {[%emt 0:01:20]} 10. O-O {[%emt 0:01:22]} Qc7 {[%emt 0:05:44]} 11. a4 {[%emt 0:01:33]} Ng6 {[%emt 0:03:27]} 12. Re1 {[%emt 0:06:36]} Rc8 {[%emt 0:06:02]} 13. Ba3 {[%emt 0:06:21]} Na5 {[%emt 0:01:25]} 14. Ng5 {[%emt 0:11:30]} Qd8 {[%emt 0:14:45]} 15. Qh5 {[%emt 0:06:30]} Qe7 {[%emt 0:01:28]} 16. Ba6 {[%emt 0:07:10]} Rc7 {[%emt 0:08:21]} 17. dxc5 {[%emt 0:02:27]} bxc5 {[%emt 0:03:55]} 18. Rab1 {[%emt 0:12:31]} Nc6 {[%emt 0:06:16]} 19. c4 {[%emt 0:01:58]} d4 {[%emt 0:21:25]} 20. Ne4 {[%emt 0:02:12]} Nd8 {[%emt 0:07:15]} 21. Nd6+ {[%emt 0:03:37]} Kf8 {[%emt 0:00:07]} 22. Rb8 {[%emt 0:01:29]} Be8 {[%emt 0:09:29]} 23. Reb1 {[%emt 0:04:49]} f5 {[%emt 0:01:36]} 24. Qe2 {[%emt 0:11:04]} Qg5 {[%emt 0:01:55]} 25. Bb5 {[%emt 0:03:09]} Bxb5 {[%emt 0:02:03]} 26. R1xb5 {[%emt 0:00:30]} Nh4 {[%emt 0:01:44]} 27. f4 {[%emt 0:01:14]} Qe7 {[%emt 0:02:00]} 28. Bxc5 {[%emt 0:06:37]} Rxc5 {[%emt 0:00:22]} 29. Rxc5 {[%emt 0:00:41]} g5 {[%emt 0:00:03]} 30. Rxd8+ {[%emt 0:00:27]} 1-0

[Event "Reykjavik Open 2022"]
[Site "Reykjavik"]
[Date "2022.04.06"]
[Round "1.50"]
[White "White, Nigel"]
[Black "Soham Das"]
[Result "0-1"]
[ECO "B12"]
[WhiteElo "1997"]
[BlackElo "2330"]
[Annotator "RC"]
[PlyCount "72"]
[EventDate "2022.04.06"]
[EventCountry "ISL"]
[SourceTitle "playchess.com"]
[Source "ChessBase"]
[SourceQuality "1"]
[TimeControl "40/5400+30:1800+30"]

1. e4 {[%emt 0:00:02]} c6 {[%emt 0:00:07]} 2. d4 {[%emt 0:00:07]} d5 {[%emt 0:00:04]} 3. e5 {[%emt 0:00:01]} c5 {[%emt 0:00:05]} 4. Nf3 {[%emt 0:00:11]} Nc6 {[%emt 0:00:15]} 5. c4 {[%emt 0:00:56]} cxd4 {[%emt 0:02:49]} 6. Nxd4 {[%emt 0:00:14]} e6 {[%emt 0:01:26]} 7. Nxc6 {[%emt 0:08:50]} bxc6 {[%emt 0:01:41]} 8. Nc3 {[%emt 0:01:17]} Bb4 {[%emt 0:01:34]} 9. Qa4 {[%emt 0:04:54]} a5 {[%emt 0:03:44]} 10. Be3 {[%emt 0:14:10]} Ne7 {[%emt 0:26:58]} 11. Be2 {[%emt 0:11:18]} O-O {[%emt 0:06:09]} 12. a3 {[%emt 0:02:54]} Bxc3+ {[%emt 0:06:28]} 13. bxc3 {[%emt 0:00:24]} Qc7 {[%emt 0:05:27]} 14. f4 {[%emt 0:02:41]} Ba6 {[%emt 0:02:01]} 15. O-O {[%emt 0:04:06]} c5 {[%emt 0:25:21]} 16. Rf2 {[%emt 0:07:19]} Rfb8 {[%emt 0:05:55]} 17. Bf1 {[%emt 0:09:52]} h6 {[%emt 0:05:05]} 18. Re1 {[%emt 0:02:01]} Rb7 {[%emt 0:01:15]} 19. Bd2 {[%emt 0:05:19]} dxc4 {[%emt 0:02:41]} 20. Bxc4 {[%emt 0:00:37]} Bxc4 {[%emt 0:00:41]} 21. Qxc4 {[%emt 0:00:12]} Rd8 {[%emt 0:00:41]} 22. Bc1 {[%emt 0:04:32]} Qc6 {[%emt 0:00:20]} 23. g4 {[%emt 0:01:56]} Qd5 {[%emt 0:00:37]} 24. Qa4 {[%emt 0:02:17]} Rbd7 {[%emt 0:00:33]} 25. Qxa5 {[%emt 0:03:00]} Qc4 {[%emt 0:00:19]} 26. Be3 {[%emt 0:03:25]} Rd1 {[%emt 0:00:21]} 27. Rff1 {[%emt 0:00:35]} R1d5 {[%emt 0:00:41]} 28. h3 {[%emt 0:02:05]} Ng6 {[%emt 0:00:40]} 29. a4 {[%emt 0:04:49]} Nh4 {[%emt 0:00:25]} 30. Rf2 {[%emt 0:01:18]} Qe4 {[%emt 0:00:27]} 31. c4 {[%emt 0:01:10]} Rd1 {[%emt 0:00:13]} 32. Bd2 {[%emt 0:02:27]} Rxe1+ {[%emt 0:00:29]} 33. Bxe1 {[%emt 0:00:04]} Rd1 {[%emt 0:00:04]} 34. Kf1 {[%emt 0:00:19]} Qd3+ {[%emt 0:00:51]} 35. Re2 {[%emt 0:00:15]} Qxh3+ {[%emt 0:00:29]} 36. Kf2 {[%emt 0:00:24]} Qf3+ {[%emt 0:00:12]} 0-1

[Event "Reykjavik Open 2022"]
[Site "Reykjavik"]
[Date "2022.04.06"]
[Round "1.51"]
[White "Minko, Dmitry"]
[Black "Balzer, Lars"]
[Result "1-0"]
[ECO "B13"]
[WhiteElo "2298"]
[BlackElo "2018"]
[Annotator "RC"]
[PlyCount "75"]
[EventDate "2022.04.06"]
[EventCountry "ISL"]
[SourceTitle "playchess.com"]
[Source "ChessBase"]
[SourceQuality "1"]
[TimeControl "40/5400+30:1800+30"]

1. e4 {[%emt 0:00:14]} c6 {[%emt 0:00:30]} 2. d4 {[%emt 0:00:08]} d5 {[%emt 0:00:11]} 3. exd5 {[%emt 0:00:24]} cxd5 {[%emt 0:00:07]} 4. Bd3 {[%emt 0:00:07]} Nc6 {[%emt 0:00:35]} 5. c3 {[%emt 0:00:11]} g6 {[%emt 0:00:43]} 6. h3 {[%emt 0:01:43]} Bg7 {[%emt 0:00:41]} 7. Nf3 {[%emt 0:00:29]} Bf5 {[%emt 0:02:39]} 8. Be2 {[%emt 0:00:22]} Bxb1 {[%emt 0:02:01]} 9. Rxb1 {[%emt 0:00:06]} e6 {[%emt 0:00:16]} 10. O-O {[%emt 0:04:55]} Nge7 {[%emt 0:00:10]} 11. Re1 {[%emt 0:14:05]} O-O {[%emt 0:00:37]} 12. Bf1 {[%emt 0:04:36]} a6 {[%emt 0:03:01]} 13. Bf4 {[%emt 0:12:40]} Nf5 {[%emt 0:08:03]} 14. Qd2 {[%emt 0:06:58]} Nd6 {[%emt 0:02:12]} 15. Bd3 {[%emt 0:02:56]} Na5 {[%emt 0:02:14]} 16. Ne5 {[%emt 0:02:18]} Rc8 {[%emt 0:02:38]} 17. Ng4 {[%emt 0:02:49]} Nac4 {[%emt 0:02:27]} 18. Qc1 {[%emt 0:02:31]} b5 {[%emt 0:08:16]} 19. Bg5 {[%emt 0:02:34]} Qc7 {[%emt 0:02:43]} 20. Bf6 {[%emt 0:11:27]} Ne8 {[%emt 0:09:24]} 21. Bxg7 {[%emt 0:01:02]} Kxg7 {[%emt 0:00:16]} 22. Qh6+ {[%emt 0:01:09]} Kg8 {[%emt 0:00:41]} 23. h4 {[%emt 0:06:34]} f5 {[%emt 0:14:27]} 24. Bxc4 {[%emt 0:07:42]} bxc4 {[%emt 0:02:23]} 25. Ne5 {[%emt 0:00:47]} Nf6 {[%emt 0:04:25]} 26. Re2 {[%emt 0:05:08]} Rb8 {[%emt 0:05:25]} 27. Rbe1 {[%emt 0:01:48]} Rb6 {[%emt 0:01:22]} 28. f3 {[%emt 0:01:05]} Qg7 {[%emt 0:03:31]} 29. Qg5 {[%emt 0:01:43]} Rfb8 {[%emt 0:02:59]} 30. b3 {[%emt 0:00:20]} cxb3 {[%emt 0:02:39]} 31. axb3 {[%emt 0:00:05]} Rc8 {[%emt 0:05:54]} 32. Nd3 {[%emt 0:00:25]} Rxc3 {[%emt 0:00:43]} 33. Nc5 {[%emt 0:00:05]} Ne4 {[%emt 0:10:46]} 34. Qd8+ {[%emt 0:00:58]} Kf7 {[%emt 0:00:13]} 35. Qd7+ {[%emt 0:02:27]} Kg8 {[%emt 0:00:19]} 36. Qe8+ {[%emt 0:00:13]} Qf8 {[%emt 0:00:22]} 37. Qxf8+ {[%emt 0:00:06]} Kxf8 {[%emt 0:00:17]} 38. Nd7+ {[%emt 0:00:06]} 1-0

[Event "Reykjavik Open 2022"]
[Site "Reykjavik"]
[Date "2022.04.06"]
[Round "1.52"]
[White "Magnusson, Magnus"]
[Black "De Wachter, Matthias"]
[Result "0-1"]
[ECO "B10"]
[WhiteElo "2014"]
[BlackElo "2322"]
[Annotator "NA RC"]
[PlyCount "64"]
[EventDate "2022.04.06"]
[EventCountry "ISL"]
[SourceTitle "playchess.com"]
[Source "ChessBase"]
[SourceQuality "1"]
[TimeControl "40/5400+30:1800+30"]

1. e4 {[%emt 0:00:03]} c6 {[%emt 0:00:11]} 2. d3 {[%emt 0:00:07]} d5 {[%emt 0:00:21]} 3. Nd2 {[%emt 0:00:12]} e5 {[%emt 0:00:13]} 4. Ngf3 {[%emt 0:00:06]} Bd6 {[%emt 0:00:10]} 5. g3 {[%emt 0:00:38]} Nf6 {[%emt 0:00:14]} 6. Bg2 {[%emt 0:00:19]} O-O {[%emt 0:00:18]} 7. O-O {[%emt 0:00:08]} Re8 {[%emt 0:00:18]} 8. c4 {[%emt 0:01:26]} dxe4 {[%emt 0:00:43]} 9. dxe4 {[%emt 0:04:32]} a5 {[%emt 0:01:04]} 10. b3 {[%emt 0:05:43]} a4 {[%emt 0:12:21]} 11. Bb2 {[%emt 0:04:59]} Nbd7 {[%emt 0:07:02]} 12. Qc2 {[%emt 0:02:16]} Bc5 {[%emt 0:19:31]} 13. Bc3 {[%emt 0:03:59]} axb3 {[%emt 0:13:40]} 14. axb3 {[%emt 0:07:45]} Rxa1 {[%emt 0:00:07]} 15. Bxa1 {[%emt 0:07:05]} Qb6 {[%emt 0:01:11]} 16. Nb1 {[%emt 0:04:39]} Bb4 {[%emt 0:04:44]} 17. Nc3 {[%emt 0:07:05]} Nc5 {[%emt 0:02:16]} 18. Na4 {[%emt 0:01:30]} Nxa4 {[%emt 0:03:15]} 19. bxa4 {[%emt 0:00:07]} Nd7 {[%emt 0:02:33]} 20. Nh4 {[%emt 0:07:32]} f6 {[%emt 0:04:15]} 21. Rb1 {[%emt 0:05:04]} Qc5 {[%emt 0:09:10]} 22. Qb3 {[%emt 0:04:30]} Ba5 {[%emt 0:00:15]} 23. Nf5 {[%emt 0:01:52]} Nb6 {[%emt 0:06:51]} 24. Ne3 {[%emt 0:07:20]} Be6 {[%emt 0:00:10]} 25. Bf1 {[%emt 0:01:07]} Nd7 {[%emt 0:03:00]} 26. Qd3 {[%emt 0:04:31]} Qa7 {[%emt 0:01:28]} 27. Nf5 {[%emt 0:03:43]} Bb6 {[%emt 0:03:24]} 28. a5 {[%emt 0:06:28]} Bxf2+ {[%emt 0:00:58]} 29. Kg2 {[%emt 0:00:10]} Bc5 {[%emt 0:00:06]} 30. Bc3 {[%emt 0:00:59]} Bf8 {[%emt 0:00:21]} 31. Nd6 {[%emt 0:00:51]} Nc5 {[%emt 0:00:49]} 32. Qd1 {[%emt 0:02:18]} Rd8 {[%emt 0:00:13]} 0-1

[Event "Reykjavik Open 2022"]
[Site "Reykjavik"]
[Date "2022.04.06"]
[Round "1.53"]
[White "Large, Peter G"]
[Black "Manukonda Arun"]
[Result "1-0"]
[ECO "A06"]
[WhiteElo "2335"]
[BlackElo "1939"]
[Annotator "RC"]
[PlyCount "73"]
[EventDate "2022.04.06"]
[EventCountry "ISL"]
[SourceTitle "playchess.com"]
[Source "ChessBase"]
[SourceQuality "1"]
[TimeControl "40/5400+30:1800+30"]

1. Nf3 {[%emt 0:00:19]} d5 {[%emt 0:00:08]} 2. b3 {[%emt 0:00:22]} Nc6 {[%emt 0:01:34]} 3. Bb2 {[%emt 0:01:05]} Bf5 {[%emt 0:03:14]} 4. e3 {[%emt 0:03:28]} Nb4 {[%emt 0:06:41]} 5. d3 {[%emt 0:05:20]} c5 {[%emt 0:01:45]} 6. Nbd2 {[%emt 0:05:42]} e6 {[%emt 0:05:15]} 7. e4 {[%emt 0:19:39]} Bg6 {[%emt 0:01:51]} 8. Ne5 {[%emt 0:17:10]} Nf6 {[%emt 0:16:20]} 9. a3 {[%emt 0:03:38]} Nc6 {[%emt 0:01:07]} 10. Nxc6 {[%emt 0:07:54]} bxc6 {[%emt 0:01:23]} 11. e5 {[%emt 0:00:37]} Nd7 {[%emt 0:12:40]} 12. h4 {[%emt 0:00:38]} h6 {[%emt 0:01:13]} 13. h5 {[%emt 0:00:46]} Bh7 {[%emt 0:00:15]} 14. Qg4 {[%emt 0:07:28]} Rg8 {[%emt 0:07:40]} 15. g3 {[%emt 0:01:47]} g6 {[%emt 0:01:12]} 16. Bh3 {[%emt 0:02:26]} gxh5 {[%emt 0:03:01]} 17. Qxh5 {[%emt 0:00:45]} Rg5 {[%emt 0:00:24]} 18. Qe2 {[%emt 0:00:29]} Qa5 {[%emt 0:03:28]} 19. O-O {[%emt 0:02:34]} Rb8 {[%emt 0:06:59]} 20. Nf3 {[%emt 0:01:07]} Rg8 {[%emt 0:00:40]} 21. Kh2 {[%emt 0:02:42]} Qd8 {[%emt 0:06:34]} 22. Bc1 {[%emt 0:01:20]} Bg7 {[%emt 0:00:54]} 23. Bf4 {[%emt 0:00:45]} Nf8 {[%emt 0:00:15]} 24. Qe3 {[%emt 0:03:44]} Qe7 {[%emt 0:03:46]} 25. Bxh6 {[%emt 0:02:23]} Bxh6 {[%emt 0:02:19]} 26. Qxh6 {[%emt 0:00:02]} Kd7 {[%emt 0:03:58]} 27. b4 {[%emt 0:01:13]} Kc7 {[%emt 0:03:32]} 28. Qh4 {[%emt 0:01:56]} Qd7 {[%emt 0:01:47]} 29. bxc5 {[%emt 0:00:33]} Bf5 {[%emt 0:03:07]} 30. Bxf5 {[%emt 0:01:06]} exf5 {[%emt 0:00:00]} 31. Qa4 {[%emt 0:00:30]} Rh8+ {[%emt 0:00:38]} 32. Kg2 {[%emt 0:00:40]} Ng6 {[%emt 0:00:40]} 33. Rab1 {[%emt 0:01:32]} Rxb1 {[%emt 0:02:06]} 34. Rxb1 {[%emt 0:00:07]} Kd8 {[%emt 0:00:18]} 35. Rb8+ {[%emt 0:00:45]} Ke7 {[%emt 0:00:01]} 36. Rxh8 {[%emt 0:00:08]} Nxh8 {[%emt 0:00:01]} 37. Qh4+ {[%emt 0:00:38]} 1-0

[Event "Reykjavik Open 2022"]
[Site "Reykjavik"]
[Date "2022.04.06"]
[Round "1.54"]
[White "Olesen, Poul Erik Norgaard"]
[Black "Berdnyk, Mariia"]
[Result "0-1"]
[ECO "B73"]
[WhiteElo "1981"]
[BlackElo "2287"]
[Annotator "NA RC"]
[PlyCount "82"]
[EventDate "2022.04.06"]
[EventCountry "ISL"]
[SourceTitle "playchess.com"]
[Source "ChessBase"]
[SourceQuality "1"]
[TimeControl "40/5400+30:1800+30"]

1. e4 {[%emt 0:00:04]} c5 {[%emt 0:00:06]} 2. Nf3 {[%emt 0:00:10]} d6 {[%emt 0:00:11]} 3. d4 {[%emt 0:00:10]} cxd4 {[%emt 0:00:09]} 4. Nxd4 {[%emt 0:00:12]} Nf6 {[%emt 0:00:22]} 5. Nc3 {[%emt 0:00:14]} g6 {[%emt 0:00:03]} 6. Be2 {[%emt 0:01:10]} Bg7 {[%emt 0:00:06]} 7. Be3 {[%emt 0:02:29]} Nc6 {[%emt 0:00:45]} 8. O-O {[%emt 0:01:47]} O-O {[%emt 0:00:06]} 9. f4 {[%emt 0:04:47]} Qb6 {[%emt 0:09:02]} 10. Qd3 {[%emt 0:06:50]} Qxb2 {[%emt 0:08:27]} 11. a3 {[%emt 0:45:11]} Nxe4 {[%emt 0:08:32]} 12. Na4 {[%emt 0:00:35]} Qxd4 {[%emt 0:02:29]} 13. Bxd4 {[%emt 0:05:49]} Bxd4+ {[%emt 0:00:01]} 14. Kh1 {[%emt 0:01:05]} Bf5 {[%emt 0:04:08]} 15. Qd1 {[%emt 0:03:39]} e5 {[%emt 0:21:35]} 16. c3 {[%emt 0:06:25]} Be3 {[%emt 0:02:06]} 17. g4 {[%emt 0:04:39]} Bd7 {[%emt 0:03:23]} 18. f5 {[%emt 0:02:04]} Nf2+ {[%emt 0:04:22]} 19. Rxf2 {[%emt 0:00:08]} Bxf2 {[%emt 0:00:01]} 20. Qf1 {[%emt 0:02:33]} Be3 {[%emt 0:01:51]} 21. Qh3 {[%emt 0:00:09]} Bg5 {[%emt 0:02:49]} 22. Nb2 {[%emt 0:00:29]} Ne7 {[%emt 0:02:59]} 23. Rf1 {[%emt 0:00:37]} Bc6+ {[%emt 0:02:45]} 24. Bf3 {[%emt 0:00:10]} e4 {[%emt 0:00:47]} 25. Bg2 {[%emt 0:00:07]} Nd5 {[%emt 0:01:15]} 26. Nd1 {[%emt 0:00:26]} Nf4 {[%emt 0:00:53]} 27. Rxf4 {[%emt 0:00:31]} Bxf4 {[%emt 0:00:06]} 28. Ne3 {[%emt 0:01:29]} d5 {[%emt 0:02:51]} 29. g5 {[%emt 0:01:05]} Bxg5 {[%emt 0:00:36]} 30. Ng4 {[%emt 0:00:09]} Bd7 {[%emt 0:01:10]} 31. fxg6 {[%emt 0:00:27]} hxg6 {[%emt 0:00:33]} 32. Nh6+ {[%emt 0:00:10]} Bxh6 {[%emt 0:00:09]} 33. Qxd7 {[%emt 0:00:08]} Rad8 {[%emt 0:04:01]} 34. Qh3 {[%emt 0:01:03]} Bd2 {[%emt 0:00:24]} 35. c4 {[%emt 0:00:21]} e3 {[%emt 0:00:20]} 36. Bf1 {[%emt 0:00:41]} Rfe8 {[%emt 0:04:03]} 37. Qg4 {[%emt 0:00:14]} d4 {[%emt 0:00:44]} 38. Bd3 {[%emt 0:00:10]} Kg7 {[%emt 0:00:39]} 39. h4 {[%emt 0:00:33]} Re5 {[%emt 0:00:45]} 40. Qf4 {[%emt 0:00:00]} Rc5 {[%emt 0:00:00]} 41. Kg2 {[%emt 0:01:25]} Bc3 {[%emt 0:02:19]} 0-1